fUSD/lending_fUSD_20240209
["ID","MTS","AMOUNT","RATE_DAILY","PERIOD"]
[313633961,1707504717341,157.46476505,0.00022475,2]
[313633962,1707504717374,639.5339749,0.00022475,5]
[313633964,1707504717749,155.0,0.00022475,2]
[313633965,1707504717849,220.72106657,0.00022475,2]
[313633966,1707504717917,168.91664604,5e-05,2]
[313633967,1707504720008,155.0,0.00022475,2]
[313633968,1707504720897,663.64677189,0.00022208,2]
[313633969,1707504721224,200.02179879,0.00022475,2]
[313633970,1707504721538,210.0301382,0.00022475,2]
[313633971,1707504722946,12055.34522163,0.00022475,2]
[313633972,1707504724219,239.68940189,0.00022475,2]
[313633973,1707504725089,155.0,0.00022475,2]
[313633974,1707504725474,333.13076269,0.00021,2]
[313633975,1707504725947,155.0,0.00022,2]
[313633976,1707504726255,272.16667816,0.00022437,2]
[313633977,1707504726880,1002.29,0.00021855,2]
[313633978,1707504727345,162.38826991,0.00020606,2]
[313633979,1707504727863,175.6972993,0.00020606,2]
[313633980,1707504728136,155.0,0.00022475,2]
[313633981,1707504729501,165.27083889,0.000222,2]
[313633982,1707504730654,328.24974344,0.00022475,2]
[313633983,1707504731490,219.96854828,0.00022475,2]
[313633984,1707504733660,209.47889939,0.00022475,2]
[313633985,1707504734872,285.5102529,0.00022475,2]
[313633986,1707504734933,155.0,0.00022475,2]
[313633987,1707504735025,284.04920492,0.00022475,2]
[313633989,1707504735708,362.71873317,0.00022475,2]
[313633990,1707504735973,155.0,0.00022475,2]
[313633991,1707504737742,283.18163303,0.00022475,2]
[313633992,1707504738942,243.18793133,0.00022475,2]
[313633993,1707504739306,157.46476505,0.00022475,2]
[313633994,1707504743077,226.16609982,0.00022475,2]
[313633995,1707504746169,155.0,0.00022475,2]
[313633996,1707504747257,162.38826991,0.00020515,2]
[313633997,1707504747495,165.27083889,0.000222,2]
[313633998,1707504748385,272.16667816,0.00022338,2]
[313633999,1707504748638,971.97,0.00021855,2]
[313634000,1707504749971,185.86400761,0.00022,2]
[313634001,1707504750061,2900.0,0.000225,15]
[313634002,1707504750293,285.44492535,0.00022475,2]
[313634003,1707504752843,155.0,0.00022475,2]
[313634004,1707504752921,150.0,0.00022,2]
[313634006,1707504753654,205.0,0.0002224,2]
[313634007,1707504753698,362.71873317,0.00022475,2]
[313634008,1707504754712,205.0,0.0002696,9]
[313634009,1707504756707,284.04920492,0.00022475,2]
[313634010,1707504757619,157.46476505,0.00022475,2]
[313634011,1707504759540,150.0,0.0002183,2]
[313634012,1707504764258,272.16667816,0.00022338,2]
[313634014,1707504765498,165.27083889,0.000222,2]
[313634015,1707504769280,225.90336181,0.0002465,9]
[313634016,1707504769319,166.32075875,0.00020515,2]
[313634018,1707504770152,156.8303386,0.00021855,2]
[313634019,1707504773705,362.79646156,0.00021855,2]
[313634020,1707504774229,225.90336181,0.000264,11]
[313634021,1707504774420,4010.53176962,0.00015,14]
[313634022,1707504774699,300.0,0.00022402,2]
[313634023,1707504782529,272.16667816,0.00022338,2]
[313634024,1707504782717,282.56756662,0.00021855,2]
[313634025,1707504783494,170.05666727,0.000222,2]
[313634027,1707504791729,188.28,0.00021784,2]
[313634028,1707504795650,161.27842766,0.00022502,2]
[313634029,1707504796503,156.17744153,0.00022502,2]
[313634030,1707504798767,187.44,0.00021784,2]
[313634031,1707504800359,272.16667816,0.00022338,2]
[313634032,1707504803385,328.0,0.00021788,2]
[313634033,1707504803871,282.70188833,0.00022502,2]
[313634035,1707504810379,290.3213485,0.00022502,2]
[313634036,1707504812035,296.88912932,0.00022502,2]
[313634037,1707504812702,382.79,0.00021788,2]
[313634038,1707504815807,165.55,0.0001743,2]
[313634039,1707504816221,165.55,0.00021788,2]
[313634040,1707504818263,272.16667816,0.00022338,2]
[313634041,1707504818635,155.0,0.00022502,7]
[313634042,1707504820407,150.0,0.00022,2]
[313634043,1707504822438,212.73792894,0.00022502,2]
[313634047,1707504826179,282.53144061,0.00022502,2]
[313634049,1707504829134,155.0,0.00022502,2]
[313634053,1707504831801,216.54199318,0.00022502,2]
[313634054,1707504833559,174.99521815,0.00022502,2]
[313634055,1707504834341,272.16667816,0.00022338,2]
[313634056,1707504836524,5095.18,0.00021814,2]
[313634057,1707504837366,545.44366289,0.00022502,2]
[313634058,1707504840820,339.23184983,0.00022502,2]
[313634059,1707504841765,155.0,0.00022502,2]
[313634060,1707504842915,197.87621675,0.00022502,2]
[313634062,1707504844362,224.06890769,0.00022502,4]
[313634063,1707504846041,372.94944824,0.00022502,2]
[313634065,1707504849918,2300.90603234,0.0002,2]
[313634066,1707504852287,272.16667816,0.00022338,2]
[313634067,1707504853282,166.08656206,0.00021654,2]
[313634068,1707504858027,177.4,0.00022343,2]
[313634069,1707504859991,200.0,0.00021795,2]
[313634073,1707504866807,1761.61,0.00021785,2]
[313634075,1707504874732,258.79159214,0.00022338,2]
[313634076,1707504876264,161.27842766,0.00022502,2]
[313634079,1707504879876,165.83420523,0.00022403,2]
[313634082,1707504885585,203.43076038,0.00021918,2]
[313634083,1707504886962,212.73792894,0.00022502,2]
[313634084,1707504887142,155.0,0.00022502,7]
[313634085,1707504888608,150.0,0.00022,2]
[313634086,1707504896275,176.62,0.00016712,2]
[313634088,1707504909884,164.96,0.00021789,2]
[313634091,1707504933654,155.0,0.00022502,2]
[313634092,1707504937513,200.0,0.00021767,2]
[313634093,1707504942318,303.61677276,0.00022502,2]
[313634094,1707504946711,155.0,0.00022502,2]
[313634096,1707504949811,300.0,0.00022403,2]
[313634098,1707504957148,296.53829154,0.00021996,2]
[313634099,1707504960739,161.27842766,0.00022502,2]
[313634100,1707504963792,168.17,0.00022444,2]
[313634101,1707504965668,155.0,0.00022502,7]
[313634105,1707505001830,250.0,0.00021757,2]
[313634107,1707505024750,250.0,0.00022,2]
[313634108,1707505025984,250.0,0.00022274,2]
[313634109,1707505026646,2000.0,0.00021765,2]
[313634111,1707505035270,161.27842766,0.00022502,2]
[313634112,1707505035835,917.66,0.00019841,2]
[313634113,1707505036075,917.66,0.00022105,2]
[313634115,1707505065269,174.05605689,0.00022407,2]
[313634118,1707505076764,222.28,0.00021745,2]
[313634120,1707505091251,334.25871323,0.00022407,2]
[313634121,1707505096050,334.25871321,0.00022433,2]
[313634122,1707505096584,208.11561963,0.00022502,2]
[313634123,1707505101065,334.25871321,0.00022459,2]
[313634124,1707505106044,334.25871321,0.00022485,2]
[313634126,1707505113492,237.92,0.00021736,2]
[313634127,1707505113744,205.0,0.0002242,2]
[313634128,1707505115284,205.0,0.00027269,9]
[313634129,1707505122561,602.07,0.00021871,2]
[313634130,1707505122921,602.07,0.00021931,2]
[313634131,1707505123070,602.07,0.00021991,2]
[313634132,1707505123312,602.07,0.00022051,2]
[313634133,1707505123560,602.07,0.00022111,2]
[313634134,1707505123773,602.07,0.00022171,2]
[313634136,1707505124013,602.07,0.00022231,2]
[313634137,1707505124232,602.07,0.00022291,2]
[313634138,1707505124500,602.07,0.00022351,2]
[313634139,1707505124675,602.07,0.00022411,2]
[313634140,1707505124902,602.07,0.00022471,2]
[313634141,1707505126693,309.1,0.0002169,2]
[313634144,1707505137297,186.06,0.00021654,10]
[313634145,1707505137547,186.06,0.00023776,10]
[313634146,1707505141087,230.35,0.00021649,2]
[313634147,1707505144530,166.7,0.00021647,2]
[313634149,1707505166832,169.02,0.00021642,2]
[313634151,1707505171007,150.0,0.00022,2]
[313634152,1707505177498,150.0,0.00022,2]
[313634155,1707505203324,150.0,0.00022,2]
[313634156,1707505203511,150.0,0.00022,2]
[313634157,1707505203712,249.56561815,0.00022,2]
[313634158,1707505205063,186.98,0.00021637,2]
[313634160,1707505209323,250.0,0.00021918,2]
[313634166,1707505241017,2993.42080003,0.00022495,2]
[313634170,1707505263941,150.0,0.00021637,2]
[313634172,1707505270463,615.91,0.00021637,2]
[313634177,1707505284550,-224.06890769,0.00022503,4]
[313634180,1707505288421,223.98946665,0.00022,2]
[313634181,1707505290842,177.11,0.00022,2]
[313634182,1707505299345,2500.0,0.00022494,2]
[313634184,1707505305647,224.06890769,0.00022366,4]
[313634186,1707505308701,258.26,0.00022,2]
[313634187,1707505309994,258.26,0.00022137,2]
[313634188,1707505310483,134.24271797,0.0002165,2]
[313634189,1707505310506,65.75728203,0.0002165,2]
[313634190,1707505311270,258.26,0.00022274,2]
[313634191,1707505312537,258.26,0.00022411,2]
[313634192,1707505313245,737.6,0.0002165,2]
[313634193,1707505313669,200.0,0.0002165,2]
[313634195,1707505326914,224.06890769,0.00022366,4]
[313634197,1707505341640,200.01,0.00021648,2]
[313634198,1707505346621,165.55,0.00017319,2]
[313634199,1707505348912,355.20639887,0.00022366,4]
[313634201,1707505368719,174.05605689,0.00022407,2]
[313634203,1707505388744,1361.23135452,0.00021643,2]
[313634204,1707505388771,106.76864548,0.00021643,2]
[313634207,1707505423833,200.0,0.00021643,2]
[313634208,1707505431453,456.70755767,0.00022366,7]
[313634209,1707505432617,2619.24320007,0.00022495,2]
[313634211,1707505435684,176.62,0.00016712,2]
[313634212,1707505442365,206.8644,0.00022494,2]
[313634214,1707505472777,233.79619678,0.00022494,2]
[313634215,1707505472805,130.39000322,0.00022494,2]
[313634218,1707505511899,250.0,0.00021667,2]
[313634222,1707505527420,2000.0,0.00021678,2]
[313634224,1707505539952,1412.1497,0.00022494,2]
[313634228,1707505586429,267.40697072,0.00022407,2]
[313634229,1707505590158,-4000.0,0.00022506,2]
[313634230,1707505591886,-1542.7476156,0.00022506,2]
[313634231,1707505591904,-1000.0,0.00022507,5]
[313634232,1707505591925,-602.07,0.00022531,2]
[313634233,1707505591944,-150.0,0.00022547,2]
[313634234,1707505591962,-150.0,0.00022547,2]
[313634235,1707505591981,-250.0,0.00022548,2]
[313634236,1707505592002,-150.0,0.00022548,2]
[313634237,1707505592020,-150.0,0.00022548,2]
[313634238,1707505592039,-5.1823844,0.00022548,2]
[313634239,1707505592083,267.40697056,0.00022433,2]
[313634240,1707505592335,-171.9276156,0.00022548,2]
[313634241,1707505592355,-258.26,0.00022548,2]
[313634242,1707505592375,-282.40780007,0.00022566,2]
[313634243,1707505592395,-299.99,0.00022586,7]
[313634244,1707505592416,-602.07,0.00022591,2]
[313634245,1707505592437,-208.11561963,0.00022593,2]
[313634246,1707505592457,-2177.2289647,0.00022593,2]
[313634247,1707505593378,-4000.0,0.00022593,2]
[313634248,1707505594053,-4000.0,0.00022593,2]
[313634249,1707505596431,267.40697056,0.00022459,2]
[313634250,1707505601422,267.40697056,0.00022485,2]
[313634251,1707505601642,-645.07474092,0.00022593,2]
[313634252,1707505601666,-354.92525908,0.00022594,2]
[313634254,1707505602662,-1000.0,0.00022594,2]
[313634255,1707505605695,166.7,0.00021755,2]
[313634257,1707505624144,2291.83780007,0.00022495,2]
[313634258,1707505624582,210.72,0.00021896,2]
[313634259,1707505624845,210.72,0.00021956,2]
[313634260,1707505625093,210.72,0.00022016,2]
[313634261,1707505625310,210.72,0.00022076,2]
[313634262,1707505625535,210.72,0.00022136,2]
[313634263,1707505625731,210.72,0.00022196,2]
[313634264,1707505625972,210.72,0.00022256,2]
[313634265,1707505626195,210.72,0.00022316,2]
[313634266,1707505626679,210.72,0.00022376,2]
[313634267,1707505626760,210.72,0.00022436,2]
[313634268,1707505626934,210.72,0.00022496,2]
[313634269,1707505635524,-267.40697056,0.00022511,2]
[313634271,1707505649101,500.0,0.000223,8]
[313634272,1707505651232,1000.0,0.000224,8]
[313634273,1707505653601,1500.0,0.000225,8]
[313634274,1707505663946,250.0,0.00021918,2]
[313634276,1707505681750,825.89,0.00019753,2]
[313634277,1707505681818,825.89,0.00022017,2]
[313634278,1707505686386,801.83,0.00021671,2]
[313634284,1707505731502,150.3137,0.00022494,2]
[313634286,1707505733764,150.0,0.00022472,2]
[313634294,1707505736197,307.95,0.00021671,2]
[313634295,1707505744233,886.5772,0.00022494,2]
[313634503,1707505775471,409.92,0.00021665,2]
[313634510,1707505795552,158.8089,0.00022494,2]
[313634512,1707505808600,150.0,0.00021663,2]
[313634518,1707505812586,200.0,0.00021667,2]
[313634519,1707505814799,2005.35807507,0.00022495,2]
[313634563,1707505832127,-267.40697056,0.00022537,2]
[313634564,1707505832136,-95.60737961,0.00022556,2]
[313634574,1707505832287,-115.11262039,0.00022556,2]
[313634575,1707505832297,-267.40697056,0.00022563,2]
[313634576,1707505832306,-267.40697056,0.00022589,2]
[313634577,1707505832316,-5542.7476156,0.00022593,2]
[313634578,1707505832325,-300.0,0.00022593,2]
[313634579,1707505832334,-150.0,0.00022593,2]
[313634580,1707505832342,-64838.39582203,0.00022594,2]
[313634581,1707505832355,-202654.60179671,0.00022594,2]
[313634582,1707505832364,-100000.0,0.00022595,2]
[313634583,1707505832373,-177.52255749,0.00022595,5]
[313634584,1707505832382,-381.72,0.00022595,2]
[313634585,1707505832391,-316.35586858,0.00022596,2]
[313634586,1707505832401,-499.99,0.00022596,2]
[313634587,1707505832410,-2000.0,0.000226,8]
[313634588,1707505832419,-267.40697056,0.00022615,2]
[313634589,1707505832428,-210.72,0.00022616,2]
[313634590,1707505832437,-155.0,0.0002262,2]
[313634591,1707505832446,-267.40697056,0.00022641,2]
[313634592,1707505832455,-155.40880575,0.00022666,2]
[313634593,1707505832464,-267.40697056,0.00022666,2]
[313634596,1707505832473,-316.35586855,0.00022672,2]
[313634599,1707505832482,-1000.0,0.00022674,5]
[313634602,1707505832491,-210.72,0.00022676,2]
[313634603,1707505832501,-150.0,0.00022679,2]
[313634604,1707505832511,-258.26,0.00022685,2]
[313634605,1707505832519,-209.30794999,0.00022686,2]
[313634606,1707505832529,-267.40697056,0.00022692,2]
[313634607,1707505832540,-306.31311412,0.00022693,7]
[313634608,1707505832550,-312.78735356,0.00022693,2]
[313634609,1707505832559,-302.6076808,0.00022694,2]
[313634610,1707505832568,-155.0,0.00022694,2]
[313634611,1707505832578,-500.0,0.00022695,2]
[313634612,1707505832587,-500.0,0.00022695,2]
[313634613,1707505832597,-500.0,0.00022695,2]
[313634614,1707505832607,-500.0,0.00022695,2]
[313634615,1707505832616,-500.0,0.00022695,2]
[313634616,1707505832626,-500.0,0.00022695,2]
[313634617,1707505832635,-500.0,0.00022695,2]
[313634618,1707505832645,-414.24341427,0.00022695,2]
[313634619,1707505832655,-617.89434646,0.00022695,2]
[313634620,1707505832664,-500.0,0.00022695,2]
[313634621,1707505832674,-500.0,0.00022695,2]
[313634622,1707505832685,-500.0,0.00022695,2]
[313634623,1707505832694,-500.0,0.00022695,2]
[313634624,1707505832704,-500.0,0.00022695,2]
[313634625,1707505832714,-500.0,0.00022695,2]
[313634626,1707505832724,-500.0,0.00022695,2]
[313634627,1707505832733,-500.0,0.00022695,2]
[313634628,1707505832743,-500.0,0.00022695,2]
[313634629,1707505832753,-500.0,0.00022695,2]
[313634630,1707505832763,-500.0,0.00022695,2]
[313634631,1707505832773,-275.88030098,0.00022695,2]
[313634632,1707505832784,-106939.85362572,0.00022696,2]
[313634633,1707505832796,-2113.38660443,0.00022696,2]
[313634634,1707505832816,-1394.25075615,0.00022696,2]
[313634635,1707505832827,-481.13236969,0.00022696,2]
[313634636,1707505834138,205.0,0.00021632,2]
[313634637,1707505835594,205.0,0.00026924,10]
[313634642,1707505838205,-4401.15876895,0.00022696,2]
[313634643,1707505838217,-9534.73620001,0.00022696,2]
[313634644,1707505838231,-297.93267604,0.00022696,2]
[313634645,1707505838628,-95098.40314664,0.00022696,2]
[313634646,1707505838685,-382.231387,0.00022696,2]
[313634655,1707505841639,-24356.91446537,0.00022696,2]
[313634656,1707505841649,-12288.3785,0.00022696,2]
[313634657,1707505841659,-1432.7536,0.00022696,2]
[313634658,1707505841668,-2600.0,0.000227,8]
[313634659,1707505841677,-16654.50876527,0.0002271,2]
[313634660,1707505841689,-4770.8,0.0002271,2]
[313634673,1707505844812,-475.85,0.0002271,2]
[313634675,1707505844824,-1903.23,0.0002271,2]
[313634677,1707505844888,-774.28328207,0.0002271,2]
[313634678,1707505844908,-802.65195171,0.0002271,2]
[313634679,1707505844976,-877.77369862,0.0002271,2]
[313634680,1707505844987,-278.90230233,0.0002271,2]
[313634681,1707505844996,-267.40697056,0.00022718,2]
[313634682,1707505845005,-210.72,0.00022736,2]
[313634683,1707505845014,-267.40697056,0.00022744,2]
[313634684,1707505845025,-316.35586855,0.00022748,2]
[313634685,1707505845034,-801.83,0.00022754,2]
[313634686,1707505845045,-267.40697056,0.0002277,2]
[313634687,1707505845055,-218.76446542,0.00022771,2]
[313634688,1707505845064,-363.529526,0.00022794,2]
[313634689,1707505845086,-28.03146755,0.00022794,2]
[313634690,1707505845096,-291.6711707,0.00022794,2]
[313634691,1707505845105,-155.0,0.00022794,2]
[313634692,1707505845114,-512.36766876,0.00022794,2]
[313634693,1707505845123,-395.70895984,0.00022794,2]
[313634694,1707505845132,-271.54997779,0.00022794,2]
[313634695,1707505845142,-284.23605229,0.00022794,2]
[313634696,1707505845151,-152.36082343,0.00022794,2]
[313634698,1707505845176,-229.49578432,0.00022794,2]
[313634699,1707505845185,-156.75185673,0.00022794,2]
[313634700,1707505845194,-255.52140097,0.00022794,2]
[313634701,1707505845203,-1213.91994125,0.00022794,2]
[313634714,1707505846186,-564.28149039,0.00022794,2]
[313634715,1707505846202,-339.18297734,0.00022794,2]
[313634716,1707505846214,-2212.31133154,0.00022794,2]
[313634717,1707505846224,-702.01654297,0.00022794,2]
[313634718,1707505846234,-178.49655563,0.00022794,2]
[313634719,1707505846244,-330.45896985,0.00022794,2]
[313634720,1707505846253,-270.57153416,0.00022794,2]
[313634721,1707505846262,-180.76493071,0.00022794,2]
[313634722,1707505846271,-374.16335448,0.00022794,2]
[313634723,1707505846281,-17314.60741727,0.00022794,2]
[313634724,1707505846290,-197.8622325,0.00022794,2]
[313634725,1707505846302,-214.09962187,0.00022794,2]
[313634726,1707505846311,-155.0,0.00022794,2]
[313634727,1707505846320,-1647.14750903,0.00022795,2]
[313634728,1707505846355,-630.21263067,0.00022795,2]
[313634747,1707505846844,-779.16134379,0.00022795,2]
[313634748,1707505846853,-1195.64544922,0.00022796,2]
[313634749,1707505846863,-1000.0,0.00022796,5]
[313634750,1707505846872,-267.40697056,0.00022796,2]
[313634751,1707505846882,-210.72,0.00022796,2]
[313634752,1707505846891,-195.64648384,0.00022797,3]
[313634753,1707505846901,-500.0,0.000228,8]
[313634754,1707505846911,-264.71552263,0.00022822,2]
[313634755,1707505846921,-258.26,0.00022822,2]
[313634756,1707505846933,-267.40697056,0.00022822,2]
[313634757,1707505846942,-316.35586855,0.00022824,2]
[313634758,1707505846952,-267.40697056,0.00022848,2]
[313634759,1707505846962,-210.72,0.00022856,2]
[313634760,1707505846971,-267.40697056,0.00022874,2]
[313634761,1707505846980,-800.0,0.00022877,2]
[313634762,1707505846990,-376.42391362,0.00022895,2]
[313634763,1707505847000,-635.98281774,0.00022895,4]
[313634764,1707505847010,-934.63505046,0.00022895,2]
[313634765,1707505847019,-514.10298994,0.00022895,2]
[313634766,1707505847028,-2350.79417917,0.00022895,2]
[313634767,1707505847037,-155.67068699,0.00022895,2]
[313634768,1707505847048,-155.0,0.00022895,2]
[313634769,1707505847057,-221.22226679,0.00022895,2]
[313634770,1707505847066,-264.99913733,0.00022895,2]
[313634771,1707505847075,-3124.23740032,0.00022895,2]
[313634772,1707505847084,-318.98310782,0.00022895,2]
[313634773,1707505847093,-215.86628773,0.00022895,2]
[313634774,1707505847102,-172.36061,0.00022895,2]
[313634775,1707505847112,-853.64959829,0.00022895,2]
[313634776,1707505847120,-276.36472035,0.00022895,2]
[313634777,1707505847129,-261.40959771,0.00022895,2]
[313634778,1707505847139,-356.12782082,0.00022895,2]
[313634779,1707505847148,-155.0,0.00022895,2]
[313634780,1707505847158,-162.98016831,0.00022895,2]
[313634781,1707505847168,-200.17112537,0.00022895,2]
[313634782,1707505847179,-234.32954791,0.00022895,2]
[313634784,1707505847187,-155.0,0.00022895,2]
[313634786,1707505847197,-155.0,0.00022895,2]
[313634787,1707505847206,-162.76541641,0.00022895,2]
[313634790,1707505847215,-311.58314941,0.00022895,2]
[313634791,1707505847225,-155.0,0.00022895,2]
[313634792,1707505847234,-155.0,0.00022895,2]
[313634793,1707505847243,-204.00769385,0.00022895,2]
[313634794,1707505847252,-264.65705481,0.00022895,2]
[313634795,1707505847261,-155.0,0.00022895,2]
[313634796,1707505847271,-155.0,0.00022895,2]
[313634797,1707505847281,-365.78086249,0.00022895,2]
[313634798,1707505847290,-155.0,0.00022895,2]
[313634799,1707505847303,-172.70999681,0.00022896,2]
[313634800,1707505847313,-10129.72543274,0.00022896,2]
[313634801,1707505847322,-187.7830248,0.00022896,2]
[313634802,1707505847331,-177.17930462,0.00022896,2]
[313634803,1707505847340,-365.41587174,0.00022896,2]
[313634804,1707505847349,-228.83425128,0.00022896,2]
[313634805,1707505847359,-177.50954303,0.00022896,2]
[313634806,1707505847368,-310.0,0.00022896,2]
[313634807,1707505847377,-156.12756991,0.00022896,2]
[313634808,1707505847386,-447.5188044,0.00022896,2]
[313634809,1707505847395,-621.16475144,0.00022896,2]
[313634810,1707505847404,-204.7712189,0.00022896,2]
[313634811,1707505847413,-241.79443246,0.00022896,2]
[313634812,1707505847423,-179.96646652,0.00022896,2]
[313634813,1707505847432,-358.09832945,0.00022896,2]
[313634814,1707505847441,-156.87377571,0.00022896,2]
[313634815,1707505847453,-155.84342339,0.00022896,2]
[313634816,1707505847463,-6648.41435615,0.00022896,2]
[313634817,1707505847474,-156.79801457,0.00022896,2]
[313634818,1707505847483,-635.53023928,0.00022896,2]
[313634819,1707505847492,-156.41238543,0.00022896,2]
[313634820,1707505847502,-277.39017854,0.00022896,2]
[313634821,1707505847511,-156.10266455,0.00022896,2]
[313634822,1707505847520,-593.37869393,0.00022896,2]
[313634823,1707505847530,-1000.0,0.00022897,5]
[313634824,1707505847539,-8708.75439294,0.00022898,2]
[313634825,1707505847550,-1011.20087833,0.000229,2]
[313634826,1707505847559,-316.35586855,0.000229,2]
[313634827,1707505847569,-13916.4421671,0.000229,2]
[313634828,1707505847599,900.3741,0.00022494,2]
[313634830,1707505847661,-1976.28171118,0.000229,2]
[313634831,1707505847673,-9564.71735957,0.000229,2]
[313634832,1707505848165,-23714.72876215,0.000229,2]
[313634833,1707505848174,-267.40697056,0.000229,2]
[313634834,1707505848186,-4604.67,0.000229,2]
[313634835,1707505848195,-213.96470731,0.000229,4]
[313634836,1707505848205,-500.0,0.000229,8]
[313634837,1707505848214,-1378.35851219,0.00022907,2]
[313634838,1707505848223,-1378.35851219,0.00022914,2]
[313634839,1707505848232,-213.96470731,0.00022914,4]
[313634840,1707505848241,-210.72,0.00022916,2]
[313634841,1707505848250,-205.0,0.00022955,4]
[313634842,1707505848259,-258.26,0.00022959,2]
[313634843,1707505848268,-794.92293263,0.0002296,2]
[313634844,1707505848277,-210.72,0.00022977,2]
[313634845,1707505848286,-4244.0,0.00022986,2]
[313634846,1707505848297,-209.30794999,0.0002299,2]
[313634847,1707505848306,-209.30794999,0.0002299,2]
[313634848,1707505848316,-878.72629253,0.00022995,5]
[313634849,1707505848325,-155.53512943,0.00022996,2]
[313634850,1707505848334,-76281.72946858,0.00022996,2]
[313634851,1707505848346,-3637.59445777,0.00022996,2]
[313634854,1707505857167,8862.6396001,0.00021665,2]
[313634858,1707505863248,200.0,0.00022465,2]
[313634859,1707505864254,205.0,0.00021632,2]
[313634860,1707505927797,34340.7322,0.00022494,2]
[313634861,1707505934566,177.11,0.00022,2]
[313634862,1707505943014,176.53,0.00022083,2]
[313634863,1707505951017,258.26,0.00022,2]
[313634864,1707505952354,258.26,0.00022137,2]
[313634865,1707505953643,258.26,0.00022274,2]
[313634866,1707505954925,469.42171068,0.00022411,2]
[313634867,1707505960313,245000.0,0.00022494,2]
[313634868,1707505995398,1279.7495,0.00022497,2]
[313634869,1707505995930,250.0,0.00022047,2]
[313634870,1707506023840,229.40800268,0.0002464,9]
[313634871,1707506026724,23900.0,0.00022003,2]
[313634872,1707506028728,229.40800268,0.0002638,11]
[313634873,1707506047009,1303.47,0.00022033,2]
[313634874,1707506047530,1281.9469039,0.00022047,5]
[313634875,1707506055121,1218.86342781,0.00020694,5]
[313634876,1707506055497,2000.0,0.00022039,2]
[313634878,1707506063776,166.7,0.0002202,2]
[313634880,1707506083524,1281.9469039,0.0002202,5]
[313634881,1707506099533,714.19941335,0.0002202,5]
[313634882,1707506108938,183.71,0.00022185,2]
[313634883,1707506131521,545.79486599,0.0002202,7]
[313634884,1707506145148,1352.73273572,0.00022483,2]
[313634885,1707506148286,189.47,0.00022066,10]
[313634886,1707506155080,186.98,0.00022044,2]
[313634887,1707506155976,250.0,0.00022044,2]
[313634888,1707506190134,153.97,0.00022044,2]
[313634890,1707506231552,512.44184706,0.00020088,2]
[313634891,1707506231577,254.07815294,0.00020088,2]
[313634892,1707506231960,766.52,0.00022352,2]
[313634893,1707506251063,150.0,0.00022006,2]
[313634894,1707506259608,672.06,0.0002199,2]
[313634895,1707506336940,200.0,0.0002202,2]
[313634896,1707506349915,200.0,0.00022003,2]
[313634897,1707506382637,164.96,0.00021987,2]
[313634898,1707506383587,151.83299161,0.00022,2]
[313634899,1707506388687,235.89308219,0.00022,2]
[313634900,1707506420769,188.28,0.00021976,2]
[313634901,1707506474735,250.0,0.0002195,2]
[313634902,1707506495399,1086.22,0.00021923,2]
[313634903,1707506537444,2000.0,0.0002191,2]
[313634904,1707506553756,183.71,0.00022074,2]
[313634905,1707506553866,205.0,0.00022278,2]